Cogmind - Beta 13 X1 @@@ ROGUE MODE // 2023.11.14 @ 03:06:56 Player: ArabianSandBoa Result: Destroyed by Combat Programmer with EMDS Performance ------------- Evolutions (9) 4500 Regions Visited (28) 5600 Robots Destroyed (101) 505 Value Destroyed (2649) 2649 Prototype IDs (245) 4900 Alien Tech Used (2) 400 Bonus (9557) 9557 TOTAL SCORE: 28111 Bonus ------- High Alert Combat Kills 177 Entered DSFs 1000 Aligned with FarCom 300 Met Data Miner 300 Used Data Conduit 3000 Met Zhirov 300 Met Warlord at Base 500 MAIN.C Attacked Warlord 500 Met Warlord at Research 2000 Pursued by Intercept 1500 Friendly Fire -20 Cogmind --------- Core Integrity 0/1600 Matter 158/300 Energy 100/100 System Corruption 21% Temperature Cool (9) Movement Core (100) Ox1 Location -1/Access Parts ------- > --- POWER (2) -------- (None) > --- PROPULSION (9) --- (None) > --- UTILITY (12) ----- Spectral Analyzer Advanced Melee Analysis Suite Advanced Hacking Suite Advanced System Shield > --- WEAPON (2) ------- Vortex Lance > --- INVENTORY (5) ---- Enhanced Quantum Rifle Guided Plasma Cannon Nova Cannon Peak State ------------ > --- POWER ------------ Light Antimatter Reactor Light Quantum Reactor > --- PROPULSION ------- Biomechanical Wings Cooled Field Propulsion Drive Q-thruster Q-thruster Q-thruster Q-thruster Q-thruster Q-thruster Improved Diametric Drive > --- UTILITY ---------- Advanced Power Amplifier Advanced Heat Sink Medium Storage Unit Spectral Analyzer Advanced Melee Analysis Suite Improved Cloaking Device Experimental Focal Shield Point Defense Array Advanced Hacking Suite Advanced System Shield Experimental System Shield Improved Recalibrator > --- WEAPON ----------- Vortex Shotgun Vortex Lance > --- INVENTORY -------- Light Quantum Reactor Field Propulsion Array Enhanced Quantum Rifle Guided Plasma Cannon Nova Cannon Linked Autogun Linked Autogun [Rating: 189] Favorites ----------- Power Light Nuclear Core Engine Light Ion Engine Power Core Light Nuclear Core Reactor Light Quantum Reactor Propulsion Improved VTOL Module Treads Heavy Treads Leg Aluminum Leg Wheel Compact Wheel Flight Unit Improved VTOL Module Utility Medium Storage Unit Device Terrain Scanner Storage Medium Storage Unit Processor Signal Interpreter Hackware Quantum Router Protection Experimental Propulsion Shielding Weapon Shotgun Energy Gun Medium Laser Energy Cannon Guided Plasma Cannon Ballistic Gun Shotgun Ballistic Cannon Improved Light Cannon Launcher Rocket Launcher Impact Weapon Great Maul Slashing Weapon Axe Piercing Weapon Vortex Lance Build | -11 -10 -10 -9 -9 -9 -8 -8 -7 -7 -6 -6 -6 -6 -5 -5 -5 -5 -5 -4 -4 -4 -4 -4 -3 -3 -3 -2 -1 ------- Run | Jun Mat Min Mat Min Exi Min Mat Fac DSF Fac Low Low Dat Pro Fac Upp Upp Zhi Pro Fac Upp Upp War Pro Res DSF Res Acc Slots Evolved 18 | . . . 2 . . . 2 2 . 2 . . . . 2 . . . . 2 . . . . 2 . 2 2 Power 1 | . . . . . . . . . . 1 . . . . . . . . . . . . . . . . . . Propulsion 7 | . . . . . . . 2 2 . . . . . . 1 . . . . . . . . . . . 1 1 Utility 10 | . . . 2 . . . . . . 1 . . . . 1 . . . . 2 . . . . 2 . 1 1 Weapon . | . . . . . . . . . . . . . . . . . . . . . . . . . . . . . Parts Attached 276 | . 6 . 14 9 2 . 43 5 9 13 15 2 8 4 14 4 22 10 10 22 1 2 9 2 2 . 26 22 Power 26 | . . . 1 1 . . 6 . 1 1 3 . 1 . 1 1 1 . . 2 . 1 . . . . 5 1 Engine 8 | . . . 1 . . . 4 . . . 1 . 1 . . 1 . . . . . . . . . . . . Core 11 | . . . . 1 . . 2 . 1 1 2 . . . 1 . 1 . . 2 . . . . . . . . Reactor 7 | . . . . . . . . . . . . . . . . . . . . . . 1 . . . . 5 1 Propulsion 69 | . 2 . 7 1 . . 13 2 2 5 5 . 3 . 8 . . 1 . 6 1 . 1 . . . 1 11 Treads 4 | . . . 3 . . . . . . . . . . . . . . 1 . . . . . . . . . . Leg . | . . . . . . . . . . . . . . . . . . . . . . . . . . . . . Wheel 11 | . 2 . 4 1 . . 4 . . . . . . . . . . . . . . . . . . . . . Hover . | . . . . . . . . . . . . . . . . . . . . . . . . . . . . . Flight 54 | . . . . . . . 9 2 2 5 5 . 3 . 8 . . . . 6 1 . 1 . . . 1 11 Utility 95 | . 3 . 3 7 . . 14 2 1 6 6 . 4 3 3 1 1 3 3 12 . . 4 2 2 . 13 2 Device 56 | . 1 . 2 4 . . 8 1 1 4 2 . 1 1 2 1 1 1 1 11 . . 3 1 1 . 7 2 Storage 5 | . 2 . . . . . 1 . . . 1 . . . . . . . . . . . . . . . 1 . Processor 11 | . . . 1 . . . 2 1 . . . . 2 . 1 . . . . 1 . . 1 1 1 . . . Hackware 12 | . . . . . . . . . . . 2 . . 2 . . . 2 1 . . . . . . . 5 . Protection 11 | . . . . 3 . . 3 . . 2 1 . 1 . . . . . 1 . . . . . . . . . Artifact . | . . . . . . . . . . . . . . . . . . . . . . . . . . . . . Weapon 86 | . 1 . 3 . 2 . 10 1 5 1 1 2 . 1 2 2 20 6 7 2 . 1 4 . . . 7 8 Energy Gun 19 | . . . . . . . 3 . . . . . . . . 1 4 4 3 . . . 1 . . . 1 2 Energy Cannon 24 | . 1 . . . . . 1 . . . . . . . 1 1 8 1 4 2 . . 1 . . . 1 3 Ballistic Gun 10 | . . . 2 . 2 . 4 . . . . . . . . . . . . . . . . . . . 1 1 Ballistic Cannon 1 | . . . 1 . . . . . . . . . . . . . . . . . . . . . . . . . Launcher 3 | . . . . . . . 1 . 1 . . . . . . . . . . . . . . . . . . 1 Special Weapon . | . . . . . . . . . . . . . . . . . . . . . . . . . . . . . Impact Weapon 3 | . . . . . . . . . 1 1 . . . . 1 . . . . . . . . . . . . . Slashing Weapon 17 | . . . . . . . 1 . 2 . 1 2 . 1 . . 8 1 . . . 1 . . . . . . Piercing Weapon 9 | . . . . . . . . 1 1 . . . . . . . . . . . . . 2 . . . 4 1 Special Melee Weapon . | . . . . . . . . . . . . . . . . . . . . . . . . . . . . . Unidentified Prototypes 17 | . . . . . . . 6 . . 2 . . . 2 . 1 . 1 1 . . . 3 . . . 1 . Corrupted Parts 3 | . . . . . . . . . . . 1 . . . . . . 2 . . . . . . . . . . System Corruption 28 | . . . . . . . . . . . 9 . . . . . . 19 . . . . . . . . . . Parts Lost 64 | . . . . . . . 6 . 4 1 . . 5 . 12 . . . 6 1 . . . 2 . 1 1 25 Power 12 | . . . . . . . 2 . 2 . . . 1 . 2 . . . 1 . . . . 1 . . . 3 Propulsion 25 | . . . . . . . 3 . . . . . 2 . 8 . . . 1 . . . . . . . . 11 Utility 20 | . . . . . . . 1 . 2 1 . . 1 . . . . . 3 1 . . . 1 . 1 1 8 Weapon 7 | . . . . . . . . . . . . . 1 . 2 . . . 1 . . . . . . . . 3 Highest Loss Streak 23 | . . . . . . . 2 . 2 1 . . 5 . 11 . . . 3 1 . . . 2 . 1 1 23 To Critical Strikes . | . . . . . . . . . . . . . . . . . . . . . . . . . . . . . Average Slot Usage (%) 90 | . 93 100 94 100 100 100 90 100 94 87 91 99 97 92 93 70 75 75 63 83 94 92 94 92 81 85 88 91 Engine 3 | . 14 14 11 . . . 6 . . . 3 6 6 6 4 4 5 . . . . . . . . . . . Core 3 | . . . . 10 11 11 . 7 4 5 6 6 4 . 4 . 2 5 . 6 10 7 5 5 4 4 1 . Wheel 8 | . 17 28 19 22 22 22 12 . . . . . . . . . . . . . . . . . . . . . Flight 21 | . . . . . . . 23 46 46 39 40 40 40 40 36 23 23 23 18 25 31 31 31 31 28 28 26 28 Device 12 | . 11 14 19 15 . . 13 7 5 15 6 6 4 4 4 5 5 4 6 23 26 26 22 21 19 19 14 21 Storage 7 | . 14 14 11 11 11 11 9 7 7 6 8 6 6 6 5 5 5 5 1 . . . . . . . 2 3 Processor 7 | . . . 8 11 11 11 11 8 15 6 4 . 4 . 2 5 5 2 . . . . 3 6 10 14 11 8 Hackware 6 | . . . . . . . . . . . 3 13 13 21 20 17 17 19 20 11 10 10 10 10 9 9 18 13 Protection 3 | . . . . 6 22 22 1 5 . . 8 6 4 . . . . . 3 5 5 5 5 3 . . . . Energy Gun 1 | . 17 14 3 . . . . 7 . . . . . . . . 1 3 2 . . . . . . . . . Energy Cannon 1 | . 7 14 8 . . . . . . . . . . . . . 1 . 1 3 5 1 3 5 4 4 . 2 Ballistic Gun 5 | . . . 5 22 22 22 5 . . . . . . . . . . . . . . . . . . . . . Slashing Weapon 4 | . . . . . . . 5 5 3 10 6 12 13 12 10 5 5 2 5 5 5 8 3 . . . . . Naked Turns . | . . . . . . . . . . . . . . . . . . . . . . . . . . . . . Heaviest Build 103 | 11 89 89 92 103 103 103 103 25 22 26 33 33 33 29 29 26 27 25 19 34 33 36 41 41 28 28 54 64 Greatest Support 68 | 20 26 26 32 32 32 32 64 29 29 29 42 39 39 35 37 23 23 23 23 42 45 45 45 48 45 48 58 68 Greatest Overweight (x) 3 | . 3 3 3 3 3 3 3 . . . . . . . . 1 1 1 . . . . . . . . . 1 Average Overweight (x) . | . . 3 2 3 3 3 . . . . . . . . . . . . . . . . . . . . . . Largest Inventory Capacity 25 | . 25 25 25 25 25 25 25 10 10 10 10 10 10 10 10 10 10 10 10 5 5 5 5 5 5 5 10 10 Average Capacity 13 | . 11 25 25 25 25 25 15 10 10 10 10 10 10 10 10 10 10 10 6 5 5 5 5 5 5 5 8 9 Most Carried 25 | . 15 15 25 25 25 25 25 10 10 10 10 10 10 7 10 10 10 10 10 5 5 5 5 5 4 5 10 10 Average Carried 12 | . 8 15 19 24 24 25 14 9 9 9 9 9 8 4 9 7 9 9 6 4 4 4 4 4 3 3 7 9 Final Capacity 25 | 8 25 25 25 25 25 25 10 10 10 10 10 10 10 10 10 10 10 10 5 5 5 5 5 5 5 5 10 5 Final Carried 25 | 6 15 15 25 25 25 25 10 10 10 10 10 9 6 7 7 10 10 10 5 5 5 5 5 4 3 5 10 3 Class Distribution -------------------- 26% | Hacker-Sprinter 15% | Scavenger-Skirmisher 15% | Scout 12% | Mutant 9% | Sprinter 6% | Wizard-Sprinter 4% | Scavenger-Mutant Dominant Class ---------------- Mutant | -10/Materials Mutant | -10/Mines Scavenger-Skirmisher | -9/Materials Scavenger-Skirmisher | -9/Mines Mutant | -9/Exiles Mutant | -8/Mines Scout | -8/Materials Scout | -7/Factory Scout | -7/DSF Sprinter | -6/Factory Sprinter | -6/Lower Caves Derelict-Sprinter | -6/Lower Caves Derelict-Sprinter | -6/Data Miner Hacker-Sprinter | -5/Proximity Caves Wizard-Sprinter | -5/Factory Hacker-Sprinter | -5/Upper Caves Hacker-Sprinter | -5/Upper Caves Wizard-Mutant | -5/Zhirov Hacker-Sprinter | -4/Proximity Caves Hacker-Sprinter | -4/Factory Hacker-Sprinter | -4/Upper Caves Hacker-Sprinter | -4/Upper Caves Hacker-Sprinter | -4/Warlord Hacker-Sprinter | -3/Proximity Caves Hacker-Sprinter | -3/Research Hacker-Sprinter | -3/DSF Wizard-Sprinter | -2/Research Wizard-Sprinter | -1/Access Resources | -11 -10 -10 -9 -9 -9 -8 -8 -7 -7 -6 -6 -6 -6 -5 -5 -5 -5 -5 -4 -4 -4 -4 -4 -3 -3 -3 -2 -1 ----------- Run | Jun Mat Min Mat Min Exi Min Mat Fac DSF Fac Low Low Dat Pro Fac Upp Upp Zhi Pro Fac Upp Upp War Pro Res DSF Res Acc Matter Collected 3500 | 200 60 . 99 403 . . 552 118 51 292 303 28 22 . 157 80 220 70 107 121 19 93 . . . 9 315 181 Remotely 284 | . . . . . . . . . . 30 254 . . . . . . . . . . . . . . . . . Salvage Created 5087 | . 267 . 318 265 . . 719 . 60 415 371 26 22 6 299 115 252 449 60 225 29 61 . . . . 503 625 Parts 221 | . 20 . 22 19 . . 42 . 14 9 15 2 3 2 11 5 10 9 1 15 . . . . . . 8 14 Haulers Intercepted 10 | . . . 2 . . . 2 . . 2 . . . . 2 . . . . . . . . . . . . 2 Recyclers Shooed 5 | . 2 . . 1 . . . . . 1 . . . . . . . . . . . . . . . . 1 . Parts Field Recycled . | . . . . . . . . . . . . . . . . . . . . . . . . . . . . . Retrieved Matter . | . . . . . . . . . . . . . . . . . . . . . . . . . . . . . Parts Self-Destructed 24 | . . . . . . . . . . . 7 . . 2 . 1 14 . . . . . . . . . . . Prevented 10 | . . . . . . . . . . . 4 . . . . . . 4 2 . . . . . . . . . Kills | -11 -10 -10 -9 -9 -9 -8 -8 -7 -7 -6 -6 -6 -6 -5 -5 -5 -5 -5 -4 -4 -4 -4 -4 -3 -3 -3 -2 -1 ------- Run | Jun Mat Min Mat Min Exi Min Mat Fac DSF Fac Low Low Dat Pro Fac Upp Upp Zhi Pro Fac Upp Upp War Pro Res DSF Res Acc Combat Hostiles Destroyed 53 | . 3 . 5 6 . . 13 . 6 . 2 . . 1 1 1 3 . . 5 . . . . . . 1 6 Melee 15 | . . . . . . . 8 . 2 . 2 . . 1 1 . . . . . . . . . . . . 1 Guns 22 | . 3 . 4 6 . . 5 . . . . . . . . . . . . . . . . . . . 1 3 Cannons 10 | . . . 1 . . . . . . . . . . . . 1 3 . . 5 . . . . . . . . AOE 6 | . . . . . . . . . 4 . . . . . . . . . . . . . . . . . . 2 Classes Destroyed 17 | . 5 . 2 1 . . 1 . 1 1 2 . . 1 . . 1 . . 1 . . . . . . . 1 Worker 5 | . 1 . 1 . . . 3 . . . . . . . . . . . . . . . . . . . . . Builder 7 | . 1 . . 1 . . 3 . . 2 . . . . . . . . . . . . . . . . . . Tunneler 2 | . . . . . . . . . . . . . . . . . . . . 1 . . . . . . 1 . Hauler 10 | . . . 2 . . . 2 . . 2 . . . . 2 . . . . . . . . . . . . 2 Recycler 12 | . 2 . 2 . . . 1 . . 1 . . . . . . . . . . . . . . . . 4 2 Minesweeper 2 | . . . . . . . . . . . 2 . . . . . . . . . . . . . . . . . Operator 1 | . . . . . . . . . . 1 . . . . . . . . . . . . . . . . . . Drone 1 | . . . . . . . . . . . . . . 1 . . . . . . . . . . . . . . Watcher 8 | . 2 . 1 . . . 1 . . . . . . . 1 . . . . 2 . . . . . . . 1 Swarmer 27 | . 3 . 4 3 . . 7 . . . 2 . . . . . 2 . . 5 . . . . . . 1 . Cutter 6 | . . . . . . . . . 6 . . . . . . . . . . . . . . . . . . . Grunt 11 | . . . . 3 . . 5 . . . . . . . . . . . . . . . . . . . . 3 Brawler 1 | . . . . . . . . . . . . . . . . . . . . . . . . . . . . 1 Duelist 1 | . . . . . . . 1 . . . . . . . . . . . . . . . . . . . . . Sentry 2 | . . . 1 . . . . . . . . . . . . 1 . . . . . . . . . . . . Programmer 1 | . . . . . . . . . . . . . . . . . 1 . . . . . . . . . . . Tracker 3 | . . . . . . . . . . . . . . . 1 . . . . . . . . . . . . 2 Decomposer 5 | . . . . . . . . . . . . 1 . . . 2 . . . . 2 . . . . . . . Packrat 1 | . . . . . . . . . . . . . . . . . . . . . . 1 . . . . . . Samaritan 7 | . . . . . . . . . . . 6 . . . . . . . 1 . . . . . . . . . Best Kill Streak 7 | . 4 . 7 3 . . 7 . 6 2 1 . 1 1 1 1 2 . . 6 . . . . . . 6 4 Combat Bots Only 7 | . 3 . 4 3 . . 7 . 6 . 1 . . 1 1 1 2 . . 5 . . . . . . 1 3 Max Kills in Single Turn 3 | . 1 . 3 1 . . 1 . 2 1 1 1 1 1 1 1 1 . 1 1 1 1 . . . . 2 1 Gunslinging . | . . . . . . . . . . . . . . . . . . . . . . . . . . . . . Exploded 2 | . . . . . . . . . 2 . . . . . . . . . . . . . . . . . . 1 Melee 1 | . . . . . . . 1 . 1 . 1 . . 1 1 . . . . . . . . . . . . 1 Uniques/NPCs Destroyed 1 | . . . . . . . . . . . . . 1 . . . . . . . . . . . . . . . Data Miner (-6/Data Miner) Combat | -11 -10 -10 -9 -9 -9 -8 -8 -7 -7 -6 -6 -6 -6 -5 -5 -5 -5 -5 -4 -4 -4 -4 -4 -3 -3 -3 -2 -1 -------- Run | Jun Mat Min Mat Min Exi Min Mat Fac DSF Fac Low Low Dat Pro Fac Upp Upp Zhi Pro Fac Upp Upp War Pro Res DSF Res Acc Damage Taken 7953 | . 42 . 119 324 . . 1006 . 331 156 281 19 188 . 922 . 55 . 293 144 20 19 . 213 . 51 197 3573 Core 2540 | . 9 . 37 81 . . 221 . 87 5 29 . 64 . 165 . 24 . 43 32 . . . 16 . . 121 1606 Absorbed by Shields . | . . . . . . . . . . . . . . . . . . . . . . . . . . . . . Redirected to Shielding 359 | . . . . . . . 85 . . . 56 12 29 . . . . . 34 46 18 . . 79 . . . . Ignored by Resistances 229 | . . . . . . . . . . . . . . . . . . . . . . . . . . 23 71 135 Regen/Repaired (Parts) 31 | . . . . . . . . . . . . . . . . . . . . . . . 31 . . . . . Core Remaining (%) 85 | 100 . 96 . . . 70 59 . 87 . . . . 88 . . . . 69 . . . . 95 . 100 91 . Volleys Fired 244 | . 17 . 22 19 . . 36 . 3 . . . . . 1 2 22 38 28 15 . . . . . . 4 37 Largest 2 | . 2 . 2 2 . . 2 . 1 . . . . . 1 1 1 1 1 1 . . . . . . 1 1 Hottest 120 | . 110 . 99 46 . . 60 . 33 . . . . . 120 120 120 70 120 120 . . . . . . 60 113 Shots Fired 320 | . 27 . 44 38 . . 61 . 3 . . . . . 1 2 22 39 26 15 . . . . . . 4 38 Gun 197 | . 19 . 16 38 . . 50 . . . . . . . . . 7 39 8 . . . . . . . 4 16 Cannon 114 | . 8 . 28 . . . 11 . . . . . . . 1 2 15 . 18 15 . . . . . . . 16 Launcher 9 | . . . . . . . . . 3 . . . . . . . . . . . . . . . . . . 6 Special . | . . . . . . . . . . . . . . . . . . . . . . . . . . . . . Kinetic 119 | . . . 30 38 . . 50 . . . . . . . . . . . . . . . . . . . . 1 Thermal 119 | . 27 . 14 . . . 11 . . . . . . . 1 2 15 . 18 15 . . . . . . . 16 Explosive 9 | . . . . . . . . . 3 . . . . . . . . . . . . . . . . . . 6 Electromagnetic 54 | . . . . . . . . . . . . . . . . . 7 39 8 . . . . . . . . . Entropic 19 | . . . . . . . . . . . . . . . . . . . . . . . . . . . 4 15 Robot Hit Streak 21 | . 6 . 10 5 . . 7 . 2 . . . . . . . 6 21 8 14 . . . . . . 6 6 Robot Miss Streak 8 | . 2 . 6 4 . . 4 . 2 . . . . . . . 2 1 1 . . . . . . . 2 8 Penetration Max . | . . . . . . . . . . . . . . . . . . . . . . . . . . . . . Secondary Targets 3 | . . . 1 1 . . 1 . . . . . . . . . . . . . . . . . . . . . Max Gunslinging Chain 1 | . . . 1 1 . . 1 . . . . . . . . . . . . . . . . . . . . . Shots Hit Robots 299 | . 19 . 27 27 . . 73 . 5 20 23 1 2 1 12 2 7 23 7 15 2 1 . . . . 5 27 Core Hits 247 | . 10 . 14 15 . . 35 . 6 6 5 . 1 1 7 3 11 58 6 10 1 1 . . . . 8 49 Critical Kills . | . . . . . . . . . . . . . . . . . . . . . . . . . . . . . Critical Parts Destroyed 2 | . . . . . . . . . . 1 . . . . . . . . . . . . . . . . 1 . Critical Strikes 16 | . 1 . . . . . 2 . 1 3 3 . . . 2 . . . . . . . . . . . 1 3 Burn 1 | . 1 . . . . . . . . . . . . . . . . . . . . . . . . . . . Smash 1 | . . . . . . . . . . 1 . . . . . . . . . . . . . . . . . . Sever 9 | . . . . . . . 2 . . 2 3 . . . 2 . . . . . . . . . . . . . Impale 1 | . . . . . . . . . 1 . . . . . . . . . . . . . . . . . . . Detonate 1 | . . . . . . . . . . . . . . . . . . . . . . . . . . . 1 . Sunder 3 | . . . . . . . . . . . . . . . . . . . . . . . . . . . . 3 Melee Attacks 260 | . . . . . . . 61 2 5 32 27 1 2 6 38 3 4 . 1 26 3 1 1 2 2 . 15 28 Impact 12 | . . . . . . . . . . 10 2 . . . . . . . . . . . . . . . . . Slashing 195 | . . . . . . . 61 2 . 22 25 1 2 6 38 3 4 . 1 26 3 1 . . . . . . Piercing 5 | . . . . . . . . . 5 . . . . . . . . . . . . . . . . . . . Entropic 48 | . . . . . . . . . . . . . . . . . . . . . . . 1 2 2 . 15 28 Sneak Attacks 44 | . . . . . . . 8 . . 7 12 1 2 . 4 2 . . . 1 2 1 . . . . 2 2 Combat Hostiles . | . . . . . . . . . . . . . . . . . . . . . . . . . . . . . Follow-up Attacks 8 | . . . . . . . . . . 3 1 . 1 . 3 . . . . . . . . . . . . . Damage Inflicted 13099 | . 282 . 488 382 . . 2109 . 384 693 1805 79 149 51 644 237 568 317 144 837 251 81 . . . . 754 2844 Guns 2778 | . 174 . 171 382 . . 694 . . . . . . . . . 96 272 104 . . . . . . . 238 647 Cannons 1774 | . 108 . 317 . . . 23 . . . . . . . . 74 472 . 40 573 . . . . . . . 167 Explosions 1698 | . . . . . . . . . 253 . . . . . 107 . . 45 . . . . . . . . 111 1182 Melee 6849 | . . . . . . . 1392 . 131 693 1805 79 149 51 537 163 . . . 264 251 81 . . . . 405 848 Ramming . | . . . . . . . . . . . . . . . . . . . . . . . . . . . . . Kinetic 1443 | . . . 347 382 . . 694 . . . . . . . . . . . . . . . . . . . . 20 Thermal 2035 | . 282 . 141 . . . 23 . . . . . . . 107 74 472 45 40 573 . . . . . . 111 167 Explosive 1435 | . . . . . . . . . 253 . . . . . . . . . . . . . . . . . . 1182 Electromagnetic 472 | . . . . . . . . . . . . . . . . . 96 272 104 . . . . . . . . . Impact 418 | . . . . . . . . . . 239 179 . . . . . . . . . . . . . . . . . Slashing 5047 | . . . . . . . 1392 . . 454 1626 79 149 51 537 163 . . . 264 251 81 . . . . . . Piercing 131 | . . . . . . . . . 131 . . . . . . . . . . . . . . . . . . . Entropic 2118 | . . . . . . . . . . . . . . . . . . . . . . . . . . . 643 1475 Highest Corruption 21 | . . . . . . . . . 6 . 9 9 9 9 2 2 2 21 21 . . . . 1 . . . 19 Average Corruption 7 | . . . . . . . . . 3 . 9 9 9 9 1 2 2 6 21 . . . . 1 . . . 5 Corruption Purged . | . . . . . . . . . . . . . . . . . . . . . . . . . . . . . Corruption Blocked 3 | . . . . . . . . . . . . . . . . . . . . . . . . . . . 3 . Effects 50 | . . . . . . . . . . . 5 4 2 5 . 2 4 8 12 . . . . . . . . 8 Message Errors 7 | . . . . . . . . . . . 1 1 . 1 . . . 1 2 . . . . . . . . 1 Matter Fused 12 | . . . . . . . . . . . 1 1 1 . . 1 . 2 5 . . . . . . . . 1 Heat Flow Errors 8 | . . . . . . . . . . . 2 . . 2 . . 1 1 1 . . . . . . . . 1 Energy Discharges 6 | . . . . . . . . . . . . 1 . . . . 1 1 1 . . . . . . . . 2 Parts Rejected 1 | . . . . . . . . . . . . . 1 . . . . . . . . . . . . . . . Parts Fused 1 | . . . . . . . . . . . . . . . . . 1 . . . . . . . . . . . Data Loss (minor) 9 | . . . . . . . . . . . 1 . . 2 . 1 1 2 1 . . . . . . . . 1 Data Loss (major) 1 | . . . . . . . . . . . . 1 . . . . . . . . . . . . . . . . Misfires 2 | . . . . . . . . . . . . . . . . . . 1 . . . . . . . . . 1 Alerts 1 | . . . . . . . . . . . . . . . . . . . . . . . . . . . . 1 Weapon Failures 2 | . . . . . . . . . . . . . . . . . . . 2 . . . . . . . . . Overload Shots . | . . . . . . . . . . . . . . . . . . . . . . . . . . . . . Overflow Damage 1407 | . . . . . . . 20 . . 184 632 70 . . . 79 . 12 . 17 101 . . . . . 191 101 Projectiles 17 | . . . . . . . . . . . . . . . . . . . . 17 . . . . . . . . Explosions 18 | . . . . . . . . . . . . . . . . . . 12 . . . . . . . . . 6 Melee 1372 | . . . . . . . 20 . . 184 632 70 . . . 79 . . . . 101 . . . . . 191 95 Knockbacks 1 | . . . 1 . . . . . . . . . . . . . . . . . . . . . . . . . Impact . | . . . . . . . . . . . . . . . . . . . . . . . . . . . . . Kinetic 1 | . . . 1 . . . . . . . . . . . . . . . . . . . . . . . . . Secondary . | . . . . . . . . . . . . . . . . . . . . . . . . . . . . . Self-Inflicted Damage 51 | . . . . . . . . . 51 . . . . . . . . . . . . . . . . . . . Shots 2 | . . . . . . . . . 2 . . . . . . . . . . . . . . . . . . . Rammed . | . . . . . . . . . . . . . . . . . . . . . . . . . . . . . Targets Rammed . | . . . . . . . . . . . . . . . . . . . . . . . . . . . . . Kicked . | . . . . . . . . . . . . . . . . . . . . . . . . . . . . . Crushed . | . . . . . . . . . . . . . . . . . . . . . . . . . . . . . Highest Temperature 479 | . 116 . 138 . . . 85 99 . 479 311 190 57 271 18 112 300 165 122 48 . . . . . . . 328 Average Temperature 70 | . 43 . 53 . . . 40 43 . 86 84 76 17 100 8 60 89 67 59 21 . . . . . . . 92 Received Heat Transfer 834 | . . . 18 114 . . 297 . . 54 9 9 . . 9 . . . 9 . . . . 9 . . 9 297 Effects 3 | . . . . . . . . . . 3 . . . . . . . . . . . . . . . . . . Shutdowns 1 | . . . . . . . . . . 1 . . . . . . . . . . . . . . . . . . Short Circuit 1 | . . . . . . . . . . 1 . . . . . . . . . . . . . . . . . . Damage (minor) 1 | . . . . . . . . . . 1 . . . . . . . . . . . . . . . . . . Siege Activations . | . . . . . . . . . . . . . . . . . . . . . . . . . . . . . Robots Corrupted 2 | . . . . . . . . . . . . . . . . . . 1 1 . . . . . . . . . Combat Hostiles 1 | . . . . . . . . . . . . . . . . . . 1 . . . . . . . . . . Parts Fried 10 | . . . . . . . . . . 4 2 . . . . . . . 4 . . . . . . . . . Impact Corruptions 19 | . . . . . . . . . . 7 12 . . . . . . . . . . . . . . . . . Robots Melted . | . . . . . . . . . . . . . . . . . . . . . . . . . . . . . Combat Hostiles . | . . . . . . . . . . . . . . . . . . . . . . . . . . . . . Parts Melted 3 | . 1 . . . . . . . . . . . . . . . . . . 2 . . . . . . . . Heat Transferred 3816 | . 802 . 296 . . . 37 . . . . . . . 50 160 880 100 80 1200 . . . . . . 100 111 Parts Sabotaged . | . . . . . . . . . . . . . . . . . . . . . . . . . . . . . Parts Stolen . | . . . . . . . . . . . . . . . . . . . . . . . . . . . . . Parts Stripped . | . . . . . . . . . . . . . . . . . . . . . . . . . . . . . Power Chain Reactions 1 | . . . . . . . . . . . . . . . . . . 1 . . . . . . . . . . Missiles Intercepted . | . . . . . . . . . . . . . . . . . . . . . . . . . . . . . Alert | -11 -10 -10 -9 -9 -9 -8 -8 -7 -7 -6 -6 -6 -6 -5 -5 -5 -5 -5 -4 -4 -4 -4 -4 -3 -3 -3 -2 -1 ------- Run | Jun Mat Min Mat Min Exi Min Mat Fac DSF Fac Low Low Dat Pro Fac Upp Upp Zhi Pro Fac Upp Upp War Pro Res DSF Res Acc Peak Influence 819 | . 128 49 215 168 . . 230 81 210 235 . . . . 197 . . . . 168 . . . . 237 177 200 819 Initial 177 | . . 49 18 83 . . . 79 56 99 . . . . 152 . . . . 12 . . . . 57 177 93 120 Average 93 | . 65 49 85 69 . . 23 80 140 127 . . . . 123 . . . . 38 . . . . 168 172 164 497 Maximum Alert Level 3 | . . . 1 . . . 1 . 1 1 . . . . . . . . . . . . . . 1 . 1 3 Low Security (%) 89 | . 100 100 82 100 . 100 99 100 66 97 . . . . 100 . . . . 100 . . . . 32 100 82 . Level 1 6 | . . . 17 . . . . . 33 2 . . . . . . . . . . . . . . 67 . 17 41 Level 2 3 | . . . . . . . . . . . . . . . . . . . . . . . . . . . . 40 Level 3 1 | . . . . . . . . . . . . . . . . . . . . . . . . . . . . 16 Level 4 . | . . . . . . . . . . . . . . . . . . . . . . . . . . . . . Level 5 . | . . . . . . . . . . . . . . . . . . . . . . . . . . . . . High Security . | . . . . . . . . . . . . . . . . . . . . . . . . . . . . . Max Security . | . . . . . . . . . . . . . . . . . . . . . . . . . . . . . Squads Dispatched 24 | . . . . . . . 1 . 3 2 . . . . 4 . . . . 2 . . . . 1 . 2 9 Investigation 4 | . . . . . . . . . . 1 . . . . 1 . . . . 1 . . . . . . . 1 Extermination . | . . . . . . . . . . . . . . . . . . . . . . . . . . . . . Reinforcement 9 | . . . . . . . 1 . 3 1 . . . . 1 . . . . 1 . . . . . . 1 1 Assault 5 | . . . . . . . . . . . . . . . . . . . . . . . . . 1 . . 4 Garrison . | . . . . . . . . . . . . . . . . . . . . . . . . . . . . . Intercept 6 | . . . . . . . . . . . . . . . 2 . . . . . . . . . . . 1 3 Searches Triggered . | . . . . . . . . . . . . . . . . . . . . . . . . . . . . . Construction Impeded 1 | . . . . . . . 1 . . . . . . . . . . . . . . . . . . . . . Haulers Reinforced 1 | . . . . . . . . . . 1 . . . . . . . . . . . . . . . . . . Active Scanning Responses . | . . . . . . . . . . . . . . . . . . . . . . . . . . . . . Cargo Convoy Interrupts . | . . . . . . . . . . . . . . . . . . . . . . . . . . . . . Stealth | -11 -10 -10 -9 -9 -9 -8 -8 -7 -7 -6 -6 -6 -6 -5 -5 -5 -5 -5 -4 -4 -4 -4 -4 -3 -3 -3 -2 -1 --------- Run | Jun Mat Min Mat Min Exi Min Mat Fac DSF Fac Low Low Dat Pro Fac Upp Upp Zhi Pro Fac Upp Upp War Pro Res DSF Res Acc Distress Signals 17 | . . . 1 . . . 5 . . . . . . . . . . . . . . . 1 . . . 6 4 Communications Jammed . | . . . . . . . . . . . . . . . . . . . . . . . . . . . . . Distress Signals . | . . . . . . . . . . . . . . . . . . . . . . . . . . . . . Times Spotted 194 | . 6 . 9 6 . . 29 . 10 7 17 3 4 2 8 . 2 . 7 8 2 2 4 10 . 1 20 37 Peak Tracking Total 13 | . 2 . 6 3 . . 8 . 3 7 5 3 4 2 3 1 2 . 6 6 1 2 5 9 . 1 10 13 Tactical Retreats 25 | . . . . . . . 4 . 1 1 5 . . . 2 . . . 2 1 . . . 3 . . . 6 Traps | -11 -10 -10 -9 -9 -9 -8 -8 -7 -7 -6 -6 -6 -6 -5 -5 -5 -5 -5 -4 -4 -4 -4 -4 -3 -3 -3 -2 -1 ------- Run | Jun Mat Min Mat Min Exi Min Mat Fac DSF Fac Low Low Dat Pro Fac Upp Upp Zhi Pro Fac Upp Upp War Pro Res DSF Res Acc Traps Triggered 4 | . . . . . . . 1 . . . . . . . 2 . . . . . . . . . . . . 1 Indirectly . | . . . . . . . . . . . . . . . . . . . . . . . . . . . . . Trap Hack Attempts . | . . . . . . . . . . . . . . . . . . . . . . . . . . . . . Triggered . | . . . . . . . . . . . . . . . . . . . . . . . . . . . . . Disarmed 4 | . . . . . . . . . . . . . . . . . . . . 4 . . . . . . . . Reprogrammed 6 | . . . . . . . . . . . . . . . 6 . . . . . . . . . . . . . Reused 1 | . . . . . . . . . . . 1 . . . . . . . . . . . . . . . . . Traps Extracted . | . . . . . . . . . . . . . . . . . . . . . . . . . . . . . Installed 15 | . . . . . . . . . . . 15 . . . . . . . . . . . . . . . . . Triggered 12 | . . . . . . . . . . . 3 . . . . . . . 2 . 1 . 6 . . . . . Machines | -11 -10 -10 -9 -9 -9 -8 -8 -7 -7 -6 -6 -6 -6 -5 -5 -5 -5 -5 -4 -4 -4 -4 -4 -3 -3 -3 -2 -1 ---------- Run | Jun Mat Min Mat Min Exi Min Mat Fac DSF Fac Low Low Dat Pro Fac Upp Upp Zhi Pro Fac Upp Upp War Pro Res DSF Res Acc Machines Disabled 14 | . 1 . . . . . 1 . . . . . . . 2 . . 2 . . 1 . . . 1 . . 6 Max in Single Turn 2 | . 1 . . . . . 1 . . . . . . . 2 . . 2 . . 1 . . . 1 . . 1 Garrison Access 5 | . . . . . . . . . . . . . . . 1 . . . . 1 . . . . 1 . . 2 Machines Repaired . | . . . . . . . . . . . . . . . . . . . . . . . . . . . . . Machines Sabotaged . | . . . . . . . . . . . . . . . . . . . . . . . . . . . . . Overloaded Fab Kills . | . . . . . . . . . . . . . . . . . . . . . . . . . . . . . Hacking | -11 -10 -10 -9 -9 -9 -8 -8 -7 -7 -6 -6 -6 -6 -5 -5 -5 -5 -5 -4 -4 -4 -4 -4 -3 -3 -3 -2 -1 --------- Run | Jun Mat Min Mat Min Exi Min Mat Fac DSF Fac Low Low Dat Pro Fac Upp Upp Zhi Pro Fac Upp Upp War Pro Res DSF Res Acc Machines Accessed 73 | . 5 . 1 . 1 . 12 4 . 2 1 . . . 13 . . 9 1 9 1 . 5 . 2 . 2 5 Terminals 38 | . 4 . 1 . . . 11 2 . 1 . . . . 9 . . . 1 4 . . . . 2 . . 3 Fabricators 2 | . . . . . . . . 1 . . . . . . . . . . . 1 . . . . . . . . Repair Stations . | . . . . . . . . . . . . . . . . . . . . . . . . . . . . . Recycling Units 10 | . 1 . . . . . 1 1 . . . . . . 2 . . . . 2 . . . . . . 2 1 Scanalyzers 2 | . . . . . . . . . . . . . . . 1 . . . . 1 . . . . . . . . Garrison Access 4 | . . . . . . . . . . 1 . . . . 1 . . . . 1 . . . . . . . 1 Total Hacks 310 | . 19 . 3 . 1 . 47 11 . 6 1 . . . 82 . . 44 1 59 1 . 14 . 5 . 6 10 Successful 180 | . 11 . 2 . 1 . 26 2 . . 1 . . . 44 . . 44 1 26 1 . 14 . 3 . 3 1 Failed 128 | . 7 . 1 . . . 21 9 . 6 . . . . 37 . . . . 33 . . . . 2 . 3 9 Catastrophic 19 | . . . . . . . 3 2 . . . . . . 5 . . . . 2 . . . . 2 . . 5 Database Lockouts 2 | . 1 . . . . . . . . . . . . . 1 . . . . . . . . . . . . . Manual 111 | . 14 . 4 . 3 . 20 5 . . . . . . 35 . . . . 27 . . . . 3 . . . Terminals 189 | . 15 . 3 . . . 45 7 . 5 . . . . 62 . . . 1 39 . . . . 5 . . 7 Fabricators 7 | . . . . . . . . 3 . . . . . . . . . . . 4 . . . . . . . . Repair Stations . | . . . . . . . . . . . . . . . . . . . . . . . . . . . . . Recycling Units 34 | . 4 . . . . . 2 1 . . . . . . 13 . . . . 7 . . . . . . 6 1 Scanalyzers 10 | . . . . . . . . . . . . . . . 5 . . . . 5 . . . . . . . . Garrison Access 9 | . . . . . . . . . . 1 . . . . 2 . . . . 4 . . . . . . . 2 Terminal Hacks 126 | . 4 . 1 . 1 . 21 1 . . 1 . . . 22 . . 44 1 13 1 . 14 . 2 . . . Record 51 | . . . . . . . . . . . . . . . . . . 36 1 2 . . 12 . . . . . Part Schematic 9 | . . . . . . . . . . . . . . . 4 . . 4 . 1 . . . . . . . . Robot Analysis 12 | . 2 . 1 . . . 9 . . . . . . . . . . . . . . . . . . . . . Prototype ID Bank 8 | . . . . . . . 3 . . . . . . . 1 . . 4 . . . . . . . . . . Open Door 4 | . . . . . . . . . . . 1 . . . . . . . . . 1 . 2 . . . . . Open DSF 2 | . . . . . . . . 1 . . . . . . . . . . . . . . . . 1 . . . Level Access Points 1 | . . . . . . . . . . . . . . . 1 . . . . . . . . . . . . . Branch Access Points 4 | . 1 . . . . . 1 . . . . . . . 1 . . . . 1 . . . . . . . . Emergency Access Points 2 | . . . . . . . . . . . . . . . . . . . . 1 . . . . 1 . . . Terminal Index 2 | . . . . . . . 1 . . . . . . . 1 . . . . . . . . . . . . . Fabricator Index 1 | . . . . . . . . . . . . . . . 1 . . . . . . . . . . . . . Alert Level 7 | . . . . . . . 2 . . . . . . . 4 . . . . 1 . . . . . . . . Unreport Threat 5 | . . . . . . . 2 . . . . . . . 1 . . . . 2 . . . . . . . . Locate Traps 1 | . . . . . . . . . . . . . . . . . . . . 1 . . . . . . . . Disarm Traps 1 | . . . . . . . . . . . . . . . . . . . . 1 . . . . . . . . Reprogram Traps 1 | . . . . . . . . . . . . . . . 1 . . . . . . . . . . . . . Investigation Status 1 | . . . . . . . . . . . . . . . 1 . . . . . . . . . . . . . Recall Investigation 1 | . . . . . . . . . . . . . . . 1 . . . . . . . . . . . . . Hauler Manifests 3 | . . . . . . . 2 . . . . . . . 1 . . . . . . . . . . . . . Registered Components 4 | . 1 . . . . . 1 . . . . . . . 1 . . . . 1 . . . . . . . . Zone Layout 5 | . . . . . . . . . . . . . . . 3 . . . . 2 . . . . . . . . Derelict Proto ID Bank 1 | . . . . . 1 . . . . . . . . . . . . . . . . . . . . . . . Fabricator Hacks 2 | . . . . . . . . . . . . . . . . . . . . 2 . . . . . . . . Load Schematic 1 | . . . . . . . . . . . . . . . . . . . . 1 . . . . . . . . Build 1 | . . . . . . . . . . . . . . . . . . . . 1 . . . . . . . . Repair Station Hacks . | . . . . . . . . . . . . . . . . . . . . . . . . . . . . . Recycling Unit Hacks 12 | . 2 . . . . . . . . . . . . . 4 . . . . 2 . . . . . . 3 1 Report Inventory 9 | . 1 . . . . . . . . . . . . . 4 . . . . 2 . . . . . . 1 1 Retrieve Components 3 | . 1 . . . . . . . . . . . . . . . . . . . . . . . . . 2 . Scanalyzer 6 | . . . . . . . . . . . . . . . 3 . . . . 3 . . . . . . . . Insert Component 3 | . . . . . . . . . . . . . . . 1 . . . . 2 . . . . . . . . Analyze 3 | . . . . . . . . . . . . . . . 2 . . . . 1 . . . . . . . . Garrison Access Hacks 2 | . . . . . . . . . . . . . . . 1 . . . . 1 . . . . . . . . Seal Access 2 | . . . . . . . . . . . . . . . 1 . . . . 1 . . . . . . . . Unauthorized Hacks 32 | . 5 . 1 . . . 5 1 . . . . . . 14 . . . . 5 . . . . 1 . . . Terminals 21 | . 3 . 1 . . . 5 1 . . . . . . 6 . . . . 4 . . . . 1 . . . Assimilate 2 | . . . . . . . 1 . . . . . . . 1 . . . . . . . . . . . . . Botnet 17 | . 3 . 1 . . . 4 1 . . . . . . 3 . . . . 4 . . . . 1 . . . Disrupt 2 | . . . . . . . . . . . . . . . 2 . . . . . . . . . . . . . Fabricators . | . . . . . . . . . . . . . . . . . . . . . . . . . . . . . Repair Stations . | . . . . . . . . . . . . . . . . . . . . . . . . . . . . . Recycling Units 11 | . 2 . . . . . . . . . . . . . 8 . . . . 1 . . . . . . . . Monitor 2 | . . . . . . . . . . . . . . . 2 . . . . . . . . . . . . . Reject 3 | . 1 . . . . . . . . . . . . . 2 . . . . . . . . . . . . . Recyclers 2 | . . . . . . . . . . . . . . . 2 . . . . . . . . . . . . . Mask 4 | . 1 . . . . . . . . . . . . . 2 . . . . 1 . . . . . . . . Scanalyzers . | . . . . . . . . . . . . . . . . . . . . . . . . . . . . . Garrison Access . | . . . . . . . . . . . . . . . . . . . . . . . . . . . . . Data Cores Recovered 1 | . . . . . . . . . . 1 . . . . . . . . . . . . . . . . . . Used . | . . . . . . . . . . . . . . . . . . . . . . . . . . . . . Hacking Detections 43 | . 3 . 1 . . . 12 3 . 2 . . . . 10 . . . 1 6 . . . . . . 1 4 Full Trace Events 4 | . . . . . . . . . . 1 . . . . 1 . . . . 1 . . . . . . . 1 Feedback Events . | . . . . . . . . . . . . . . . . . . . . . . . . . . . . . Feedback Blocked . | . . . . . . . . . . . . . . . . . . . . . . . . . . . . . Robot Schematics Acquired . | . . . . . . . . . . . . . . . . . . . . . . . . . . . . . Robots Built . | . . . . . . . . . . . . . . . . . . . . . . . . . . . . . Authchips . | . . . . . . . . . . . . . . . . . . . . . . . . . . . . . Time . | . . . . . . . . . . . . . . . . . . . . . . . . . . . . . Total Robot Build Rating . | . . . . . . . . . . . . . . . . . . . . . . . . . . . . . Part Schematics Acquired 11 | . . . . . . . . . . . . . . . 5 . . 4 . 2 . . . . . . . . Parts Built 1 | . . . . . . . . . . . . . . . . . . . . 1 . . . . . . . . Authchips . | . . . . . . . . . . . . . . . . . . . . . . . . . . . . . Time 76 | . . . . . . . . . . . . . . . . . . . . 76 . . . . . . . . Total Part Build Rating 5 | . . . . . . . . . . . . . . . . . . . . 5 . . . . . . . . Parts Repaired . | . . . . . . . . . . . . . . . . . . . . . . . . . . . . . Time . | . . . . . . . . . . . . . . . . . . . . . . . . . . . . . Parts Recycled . | . . . . . . . . . . . . . . . . . . . . . . . . . . . . . Recycled Matter . | . . . . . . . . . . . . . . . . . . . . . . . . . . . . . Retrieved Matter . | . . . . . . . . . . . . . . . . . . . . . . . . . . . . . Retrieved Components 13 | . 3 . . . . . . . . . . . . . . . . . . . . . . . . . 10 . Parts Scanalyzed 2 | . . . . . . . . . . . . . . . 1 . . . . 1 . . . . . . . . Part Schematics Acquired 2 | . . . . . . . . . . . . . . . 1 . . . . 1 . . . . . . . . Parts Damaged . | . . . . . . . . . . . . . . . . . . . . . . . . . . . . . Bothacking | -11 -10 -10 -9 -9 -9 -8 -8 -7 -7 -6 -6 -6 -6 -5 -5 -5 -5 -5 -4 -4 -4 -4 -4 -3 -3 -3 -2 -1 ------------ Run | Jun Mat Min Mat Min Exi Min Mat Fac DSF Fac Low Low Dat Pro Fac Upp Upp Zhi Pro Fac Upp Upp War Pro Res DSF Res Acc Used RIF Installer . | . . . . . . . . . . . . . . . . . . . . . . . . . . . . . Robots Hacked . | . . . . . . . . . . . . . . . . . . . . . . . . . . . . . Non-combat . | . . . . . . . . . . . . . . . . . . . . . . . . . . . . . Combat . | . . . . . . . . . . . . . . . . . . . . . . . . . . . . . Robot Hacks Applied . | . . . . . . . . . . . . . . . . . . . . . . . . . . . . . Relay Couplers Released 4 | . . . . . . . . . . . . . . . . . . . . . . . . . 1 . . 3 Machine Destruction 4 | . . . . . . . . . . . . . . . . . . . . . . . . . 1 . . 3 Fabnet Peak Effective % . | . . . . . . . . . . . . . . . . . . . . . . . . . . . . . Robots Rewired 5 | . . . . . . . . . . . . . . . . . . . . . . . 5 . . . . . Allies Hacked . | . . . . . . . . . . . . . . . . . . . . . . . . . . . . . Hacks Repelled . | . . . . . . . . . . . . . . . . . . . . . . . . . . . . . Allies | -11 -10 -10 -9 -9 -9 -8 -8 -7 -7 -6 -6 -6 -6 -5 -5 -5 -5 -5 -4 -4 -4 -4 -4 -3 -3 -3 -2 -1 -------- Run | Jun Mat Min Mat Min Exi Min Mat Fac DSF Fac Low Low Dat Pro Fac Upp Upp Zhi Pro Fac Upp Upp War Pro Res DSF Res Acc Total Allies 7 | . . . . . . . 1 . . . . . . . 1 . . . . . . . 5 . . . . . Largest Group 5 | . . . . . . . 1 . . . . . . . 1 . . . . . . . 5 . . . . . Highest-Rated Group 266 | . . . . . . . 10 . . . . . . . 10 . . . . . . . 266 . . . . . Highest-Rated Ally 56 | . . . . . . . 10 . . . . . . . 10 . . . . . . . 56 . . . . . Total Orders . | . . . . . . . . . . . . . . . . . . . . . . . . . . . . . Ally Attacks 2 | . . . . . . . . . . . . . . . . . . . . . . . 2 . . . . . Total Damage . | . . . . . . . . . . . . . . . . . . . . . . . . . . . . . Kills . | . . . . . . . . . . . . . . . . . . . . . . . . . . . . . Allies Corrupted . | . . . . . . . . . . . . . . . . . . . . . . . . . . . . . Allies Melted . | . . . . . . . . . . . . . . . . . . . . . . . . . . . . . Intel | -11 -10 -10 -9 -9 -9 -8 -8 -7 -7 -6 -6 -6 -6 -5 -5 -5 -5 -5 -4 -4 -4 -4 -4 -3 -3 -3 -2 -1 ------- Run | Jun Mat Min Mat Min Exi Min Mat Fac DSF Fac Low Low Dat Pro Fac Upp Upp Zhi Pro Fac Upp Upp War Pro Res DSF Res Acc Robot Analysis Total 146 | . 2 . 1 . . . 9 . . . . . 134 . . . . . . . . . . . . . . . Derelict Logs Recovered 11 | . . . . 1 . . . . . . 1 2 . 1 . 2 1 . 2 . . 1 . . . . . . Drone Launches . | . . . . . . . . . . . . . . . . . . . . . . . . . . . . . Drone Recoveries . | . . . . . . . . . . . . . . . . . . . . . . . . . . . . . Exploration | -11 -10 -10 -9 -9 -9 -8 -8 -7 -7 -6 -6 -6 -6 -5 -5 -5 -5 -5 -4 -4 -4 -4 -4 -3 -3 -3 -2 -1 ------------- Run | Jun Mat Min Mat Min Exi Min Mat Fac DSF Fac Low Low Dat Pro Fac Upp Upp Zhi Pro Fac Upp Upp War Pro Res DSF Res Acc Turns Passed 9303 | . 368 34 298 925 437 43 2788 91 83 236 286 147 28 139 381 203 299 328 251 476 108 46 330 87 31 8 332 520 Spaces Moved 10694 | 1 241 26 131 476 285 20 654 198 90 356 626 400 69 390 936 424 535 270 438 868 413 159 712 339 106 31 714 786 Core 6 | . . . . . . . . . . . . . . . . . . . . . . . . . . . . 6 Treads . | . . . . . . . . . . . . . . . . . . . . . . . . . . . . . Legs 103 | 1 102 . . . . . . . . . . . . . . . . . . . . . . . . . . . Wheels 1292 | . 139 26 131 476 285 20 215 . . . . . . . . . . . . . . . . . . . . . Hover . | . . . . . . . . . . . . . . . . . . . . . . . . . . . . . Flight 9293 | . . . . . . . 439 198 90 356 626 400 69 390 936 424 535 270 438 868 413 159 712 339 106 31 714 780 Fastest Speed 12 | 120 90 135 130 135 145 145 27 21 17 17 14 14 14 14 12 28 28 28 28 18 21 21 23 20 23 20 20 14 Average Speed 38 | 120 109 135 133 137 145 145 56 21 20 21 18 19 17 19 19 28 28 62 30 25 22 23 23 21 23 20 23 19 Slowest Speed 145 | 120 135 135 135 145 145 145 145 21 24 24 20 20 20 20 29 101 101 141 32 32 23 24 24 23 23 20 24 95 Overloaded Moves 838 | . . . . . . . . . 7 29 109 12 31 21 3 . . . . . 27 15 . 209 . 31 142 202 Propulsion Burnouts . | . . . . . . . . . . . . . . . . . . . . . . . . . . . . . Robots Hopped 25 | . . . . . . . 4 . . 5 2 . 1 . 3 . . . . . . . 1 1 . . 3 5 Cave-ins Triggered 2 | . . . . . . . 1 . . . . . . . . . . . . . . . . . . . . 1 Teleports 1 | . . . . . . . . . . . . . . . . . . . 1 . . . . . . . . . Exploration Rate (%) 43 | 2 39 11 20 84 62 8 53 5 44 10 70 59 68 65 31 66 54 63 57 27 68 39 95 65 5 50 30 25 Regions Visited 28 Branch Regions 16 Pre-discovered Areas 33 | . . . . 1 . . . . . . . 1 26 1 . . . 3 . . . 1 . . . . . . Known Exits Taken 12 | . 1 . 1 1 1 1 1 1 . . . . . . 1 . . . 1 1 . . . 1 1 . . . Unknown Exits Taken 14 | 1 . 1 . . . . . . . 1 1 1 1 1 . 1 1 1 . . 1 1 1 . . . 1 . Scrap Searched 22 | . . . . 1 . . . . . . 7 2 . 1 . 2 3 . 1 . 1 3 . 1 . . . . Spaces Dug 126 | . . . . . . . 22 2 . 7 . . . 2 21 1 4 . 6 21 . . 1 2 1 . 13 23 Terrain Destroyed 241 | . . . . . . . 23 2 27 7 . . . 2 40 1 8 . 9 21 . . 1 2 1 . 15 82 Melee 109 | . . . . . . . 19 2 . 7 . . . 2 21 1 4 . 1 21 . . 1 2 1 . 13 14 Projectile 26 | . . . . . . . 4 . . . . . . . . . 4 . 8 . . . . . . . . 10 AOE 106 | . . . . . . . . . 27 . . . . . 19 . . . . . . . . . . . 2 58 Terrain Rammed . | . . . . . . . . . . . . . . . . . . . . . . . . . . . . . Walls Destroyed . | . . . . . . . . . . . . . . . . . . . . . . . . . . . . . Machines Disabled . | . . . . . . . . . . . . . . . . . . . . . . . . . . . . . Actions | -11 -10 -10 -9 -9 -9 -8 -8 -7 -7 -6 -6 -6 -6 -5 -5 -5 -5 -5 -4 -4 -4 -4 -4 -3 -3 -3 -2 -1 --------- Run | Jun Mat Min Mat Min Exi Min Mat Fac DSF Fac Low Low Dat Pro Fac Upp Upp Zhi Pro Fac Upp Upp War Pro Res DSF Res Acc Total 15207 | . 319 25 209 710 308 34 2906 243 142 456 738 467 80 443 1091 501 646 395 523 1075 421 165 871 350 109 32 862 1086 Wait 3295 | . 39 . 12 197 20 15 2057 33 24 54 38 57 . 42 72 62 55 47 34 114 1 . 73 9 . . 57 183 Move 10619 | . 240 25 130 475 284 19 645 197 89 348 621 399 66 389 929 423 534 269 437 867 412 158 709 336 105 30 707 776 Hop 22 | . . . . . . . 4 . . 2 2 . 1 . 3 . . . . . . . 1 1 . . 3 5 Pick Up 186 | . 12 . 21 4 1 . 18 3 5 4 6 4 2 3 15 5 4 14 6 16 2 1 4 . . 2 25 9 Fast Attach 67 | . 1 . . . . . 13 1 4 6 7 . 1 . 3 . 1 2 2 8 . 2 5 . 1 . 6 4 Attach 86 | . 1 . 2 . . . 13 3 2 3 1 2 2 2 10 2 2 4 4 7 . . 1 1 1 . 10 13 Detach 29 | . . . . . . . 4 1 . 2 4 . . . 4 1 1 3 1 1 . . 1 . . . 2 4 Swap 125 | . 4 . 12 9 2 . 17 1 3 4 7 . 5 2 1 2 19 5 5 7 1 . 3 1 . . 10 5 Drop 186 | . 5 . 10 6 1 . 38 2 7 8 11 4 2 . 8 1 4 13 5 14 2 3 10 . . . 23 9 Fire 244 | . 17 . 22 19 . . 36 . 3 . . . . . 1 2 22 38 28 15 . . . . . . 4 37 Melee 244 | . . . . . . . 61 2 5 25 26 1 1 5 34 3 4 . 1 26 3 1 1 2 2 . 15 26 Ram . | . . . . . . . . . . . . . . . . . . . . . . . . . . . . . Kick . | . . . . . . . . . . . . . . . . . . . . . . . . . . . . . Crush . | . . . . . . . . . . . . . . . . . . . . . . . . . . . . . Escape Stasis 26 | . . . . . . . . . . . . . . . 11 . . . . . . . . . . . . 15 Rewire 63 | . . . . . . . . . . . . . . . . . . . . . . . 63 . . . . . Trap 15 | . . . . . . . . . . . 15 . . . . . . . . . . . . . . . . . Miscellaneous . | . . . . . . . . . . . . . . . . . . . . . . . . . . . . . Route ------- -11/Junkyard -10/Materials -10/Mines -9/Materials -9/Mines (discovered 2 exits: *Mat / *Exi) -9/Exiles -8/Mines -8/Materials (discovered 2 exits: *Fac / Sto) -7/Factory -7/DSF -6/Factory -6/Lower Caves -6/Lower Caves -6/Data Miner -5/Proximity Caves -5/Factory (discovered 6 exits: Fac x4 / *Upp x2) -5/Upper Caves -5/Upper Caves (discovered 2 exits: *Fac / *Zhi) -5/Zhirov -4/Proximity Caves -4/Factory (discovered 4 exits: Res / *Upp x2 / Arm) -4/Upper Caves -4/Upper Caves -4/Warlord -3/Proximity Caves -3/Research -3/DSF -2/Research -1/Access History --------- Turn | Location | Event 1 | -11/Junkyard | Discovered new exit (range 0) 1 | -11/Junkyard | Entered Materials 31 | -10/Materials | Identified exit to Mines 259 | -10/Materials | Central database locked down 319 | -10/Materials | Build established: Mutant 369 | -10/Materials | Entered Mines 392 | -10/Mines | Discovered new exit (range 9) 403 | -10/Mines | Entered Materials 403 | -9/Materials | Evolved 2 slots: Utility x2 679 | -9/Materials | Discovered new exit (range 13) 699 | -9/Materials | Identified exit to Mines 701 | -9/Materials | Entered Mines 711 | -9/Mines | Met a Derelict bent on vengeance 960 | -9/Mines | Discovered new exit (range 3) 961 | -9/Mines | Learned location of Storage (-8) 963 | -9/Mines | Identified exit to Materials 1193 | -9/Mines | Build established: Scavenger-Skirmisher 1225 | -9/Mines | Learned location of 1 exit from Materials 1550 | -9/Mines | Deemed a non-threat by the Exiles lab entrance 1550 | -9/Mines | Discovered new exit (range 5) 1624 | -9/Mines | Identified exit to Exiles 1626 | -9/Mines | Entered Exiles 1663 | -9/Exiles | Met 8R-AWN 1686 | -9/Exiles | Met EX-HEX 1770 | -9/Exiles | Build established: Mutant 1781 | -9/Exiles | Met EX-BIN 1863 | -9/Exiles | Aligned with FarCom system 1864 | -9/Exiles | Given EX-Vault access code 1898 | -9/Exiles | Opened EX-Vault 1911 | -9/Exiles | Found Gui. Plasma Cannon 1953 | -9/Exiles | Warned to stay clear of 0b10 Research branches 1971 | -9/Exiles | Exiles lab attacked by MAIN.C 2047 | -9/Exiles | Discovered new exit (range 11) 2061 | -9/Exiles | Identified exit to Mines 2063 | -9/Exiles | Left Exiles lab with Gui. Plasma Cannon 2063 | -9/Exiles | Entered Mines 2065 | -8/Mines | Discovered exit to Materials (range 14) 2106 | -8/Mines | Entered Materials 2106 | -8/Materials | Evolved 2 slots: Propulsion x2 2107 | -8/Materials | Identified exit to Factory 2414 | -8/Materials | Build established: Scavenger-Skirmisher 2428 | -8/Materials | Identified exit to Storage 3351 | -8/Materials | Build established: Scout 4408 | -8/Materials | Destroyed 7 combat bots 4639 | -8/Materials | Build established: Sprinter 4866 | -8/Materials | Crushed by falling debris 4894 | -8/Materials | Entered Factory 4894 | -7/Factory | Evolved 2 slots: Propulsion x2 4985 | -7/Factory | Identified exit to DSF 4985 | -7/Factory | Entered DSF 4992 | -7/DSF | Discovered new exit (range 15) 5015 | -7/DSF | Additional patrols routed to DSF 5068 | -7/DSF | Entered Factory 5068 | -6/Factory | Evolved 2 slots: Power x1, Utility x1 5302 | -6/Factory | Discovered new exit (range 10) 5304 | -6/Factory | Entered Lower Caves 5551 | -6/Lower Caves | Spotted B-75 Beast 5553 | -6/Lower Caves | Learned 4 Factory zone layouts 5586 | -6/Lower Caves | Discovered new exit (range 10) 5590 | -6/Lower Caves | Entered another Lower Caves area 5615 | -6/Lower Caves | Learned Factory stockpile data 5731 | -6/Lower Caves | Discovered new exit (range 14) 5736 | -6/Lower Caves | Attracted the attention of an 0b10 checkpoint 5737 | -6/Lower Caves | Entered Data Miner 5737 | -6/Data Miner | Discovered new exit (range 6) 5741 | -6/Data Miner | Met Data Miner 5747 | -6/Data Miner | Destroyed Data Miner 5749 | -6/Data Miner | Found Prototype Hackware 5751 | -6/Data Miner | Found Prototype Hackware 5754 | -6/Data Miner | Interfaced with the Data Conduit 5765 | -6/Data Miner | Entered Proximity Caves 5765 | -5/Proximity Caves | Identified Quantum Router 5769 | -5/Proximity Caves | Spotter reported a threat 5793 | -5/Proximity Caves | Lost 5 parts (1p2n1u1w) 5874 | -5/Proximity Caves | Identified Ghost Barrier 5896 | -5/Proximity Caves | Discovered new exit (range 11) 5904 | -5/Proximity Caves | Entered Factory 5904 | -5/Factory | Evolved 2 slots: Propulsion x1, Utility x1 5907 | -5/Factory | Loaded intel: 313 machine locations 5918 | -5/Factory | Central database locked down 5942 | -5/Factory | Discovered new exit (range 12) 5999 | -5/Factory | Identified exit to Upper Caves 6208 | -5/Factory | Intercept squad dispatched 6228 | -5/Factory | Spotted Tracker 6251 | -5/Factory | Destroyed Tracker 6255 | -5/Factory | Spotted Combat Programmer 6257 | -5/Factory | Found Prototype Energy Gun 6267 | -5/Factory | Identified exit to Factory 6285 | -5/Factory | Entered Upper Caves 6285 | -5/Upper Caves | Identified Immobilizer 6301 | -5/Upper Caves | Lost 11 parts (2p7n2w) 6324 | -5/Upper Caves | Learned Factory stockpile data 6386 | -5/Upper Caves | Build established: Hacker-Sprinter 6440 | -5/Upper Caves | Spotted B-75 Beast 6458 | -5/Upper Caves | Encountered a Warlord checkpoint 6470 | -5/Upper Caves | Learned Factory emergency access door positions 6486 | -5/Upper Caves | Discovered new exit (range 9) 6488 | -5/Upper Caves | Entered another Upper Caves area 6556 | -5/Upper Caves | Discovered exit to Factory (range 5) 6615 | -5/Upper Caves | Learned location of 1 exit from Factory 6678 | -5/Upper Caves | Spotted B-75 Beast 6785 | -5/Upper Caves | Discovered new exit (range 7) 6787 | -5/Upper Caves | Entered Zhirov 6787 | -5/Zhirov | Discovered new exit (range 3) 6793 | -5/Zhirov | Met Zhirov 6804 | -5/Zhirov | Zhirov requested help retrieving the SGEMP Prototype 6809 | -5/Zhirov | Found Alien Artifact 6809 | -5/Zhirov | Identified Integrated Reactor 6809 | -5/Zhirov | Installed Integrated Reactor, increased core energy generation (+10) 6957 | -5/Zhirov | System corruption reached 10% 7007 | -5/Zhirov | Found Alien Artifact 7115 | -5/Zhirov | Entered Proximity Caves 7143 | -4/Proximity Caves | Spotted B-86 Titan 7192 | -4/Proximity Caves | Identified Transdimensional Reconstructor 7192 | -4/Proximity Caves | Warped through subspace 7217 | -4/Proximity Caves | Lost 3 parts (1n2u) 7350 | -4/Proximity Caves | Learned 4 Research zone layouts 7366 | -4/Proximity Caves | Entered Factory 7366 | -4/Factory | Evolved 2 slots: Utility x2 7367 | -4/Factory | Identified exit to Research 7370 | -4/Factory | Loaded intel: 309 machine locations 7574 | -4/Factory | Discovered new exit (range 22) 7574 | -4/Factory | Identified exit to Upper Caves 7574 | -4/Factory | Identified exit to Armory 7730 | -4/Factory | Fabricated Biomechanical Wings (x1) 7842 | -4/Factory | Entered Upper Caves 7938 | -4/Upper Caves | Discovered new exit (range 12) 7950 | -4/Upper Caves | Entered another Upper Caves area 7974 | -4/Upper Caves | Spotted B-86 Titan 7992 | -4/Upper Caves | Discovered new exit (range 13) 7996 | -4/Upper Caves | Entered Warlord 8111 | -4/Warlord | Found Prototype Device 8111 | -4/Warlord | Identified Minesniffer Drone Bay 8129 | -4/Warlord | Visited the Vortex Lab 8132 | -4/Warlord | Warlord's base attacked by MAIN.C 8132 | -4/Warlord | Found Prototype Piercing Weapon 8132 | -4/Warlord | Identified Vortex Lance 8135 | -4/Warlord | Found Prototype Energy Gun 8136 | -4/Warlord | Identified Vortex Shotgun 8138 | -4/Warlord | Found Vortex Lance 8158 | -4/Warlord | Met Warlord 8163 | -4/Warlord | Found Exp. Focal Shield 8164 | -4/Warlord | Found Spectral Analyzer 8258 | -4/Warlord | Opened side exit 8324 | -4/Warlord | Discovered new exit (range 10) 8326 | -4/Warlord | Entered Proximity Caves 8331 | -3/Proximity Caves | Spotted B-86 Titan 8411 | -3/Proximity Caves | Discovered exit to Research (range 13) 8413 | -3/Proximity Caves | Entered Research 8413 | -3/Research | Evolved 2 slots: Utility x2 8415 | -3/Research | Loaded intel: 102 machine locations 8444 | -3/Research | Identified exit to DSF 8444 | -3/Research | Entered DSF 8445 | -3/DSF | Loaded intel: 3 machine locations 8446 | -3/DSF | Discovered new exit (range 24) 8452 | -3/DSF | Entered Research 8452 | -2/Research | Warlord forces began assault on 0b10 8452 | -2/Research | Evolved 2 slots: Propulsion x1, Utility x1 8453 | -2/Research | Loaded intel: 93 machine locations 8468 | -2/Research | Spotted B-90 Cyclops 8539 | -2/Research | Met up with Warlord 8562 | -2/Research | Research machine network offline 8670 | -2/Research | Found Exp. System Shield 8682 | -2/Research | Found Adv. Force Booster 8720 | -2/Research | Discovered new exit (range 23) 8784 | -2/Research | Entered Access 8784 | -1/Access | Evolved 2 slots: Propulsion x1, Utility x1 8785 | -1/Access | Loaded intel: 106 machine locations 8793 | -1/Access | Found Quantum Capacitor 8988 | -1/Access | Crushed by falling debris 9034 | -1/Access | First assault squad dispatched 9169 | -1/Access | Intercept squad dispatched 9194 | -1/Access | Spotted Tracker 9206 | -1/Access | Destroyed Tracker 9207 | -1/Access | Spotted Tracker 9212 | -1/Access | Destroyed Tracker 9258 | -1/Access | Spotted Combat Programmer 9266 | -1/Access | Spotted Combat Programmer 9270 | -1/Access | System corruption reached 10% 9274 | -1/Access | Found Adv. Micro-nuke Launcher 9292 | -1/Access | Core integrity fell below 50% 9301 | -1/Access | Core integrity fell below 20% 9304 | -1/Access | Destroyed by Combat Programmer with EMDS Last Messages --------------- 09298_ Dropped Quantum Capacitor. 09298_ Cld. Field Propulsion Drive destroyed. 09298_ Slug penetrates G-73 Enforcer. 09298_ Penetrated by Slug. 09298_ Dropped Med. Storage Unit. 09298_ M-36 Artificer repairs Lgt. Quantum Reactor. 09298_ Penetrated by Slug. 09298_ Q-thruster destroyed. 09299_ The unstable cave ceiling collapses. 09300_ Penetrated by Slug. 09300_ Penetrated by EMDS Slug. 09301_ Slug penetrates H-88 Terminator. 09302_ H-88 Terminator suffers critical hit (Burn). 09302_ Combat Programmer resets Combat Programmer, system corruption cleaned. 09303_ Penetrated by Slug. 09304_ System corrupted: Matter fused (-7). 09304_ Penetrated by EMDS Slug. 09304_ Penetrated by Slug. 09304_ Penetrated by EMDS Slug. Map ----- +----------------------------------------------------+ | ?????????????????????????????????????????????????? | | ?????????????????????????????????????????????????? | | ?????????????????????????????????????????????????? | | ?????????????????????????????????????????????????? | | ?????????????????????????????????????????????????? | | #######??????????????????????????????????????????? | | #??????????????????????????????????????????? | | #??????????????????????????????????????????? | | """ #??????????????????????????????????????????? | | Y" #??????????????????????????????????????????? | | """ #??????????????????????????????????????????? | | #??????????????????????????????????????????? | | #??????????????????????????????????????????? | | #??????????????????????????????????????????? | | #??????????????###?????????????????????????? | | #?????????????## ###########???????????????? | | #?????????????# #???????????????? | | #?????????????# #???????????????? | | +######?????????????# Y #???????????????? | | #???????????????# ! #???????????????? | | #???????????????# ###?????????????? | | #???????????????#! * """ #?????????????? | | ##############??#! # #?????????????? | | # #??# #?????????????? | | # #??# #?????????????? | | # #??# !] @ #?????????????? | | # "" #??# ] #?????????????? | | # "" #??# % p #?????????????? | | # """""" #??## ##############??? | | # """""" #??# gh g "#??? | | # "" #??## g g ##??? | | # "" #???# m "#??? | | # #???# g ##??? | | # #???## #???? | | # #????# #???? | | ##/################# % #???? | | ##;##########;#???? | | ####?????????##???? | | [ p #?????????????????? | | " " h #?????????????????? | | """ """ #?????????????????? | | "" """ #?????????????????? | | " ^ " #?????????????????? | | ##########+#######??????????????? | | ^ #???# ? #??????????????? | | #???# ? #??????????????? | | #???# """ #??????????????? | | / #???# """ #??????????????? | | [ #???? """ #??????????????? | | ##??? "S #??????????????? | +----------------------------------------------------+ Best States ------------- Heat Dissipation 75 Energy Generation 67 Energy Capacity 420 Matter Stores 300 Matter Capacity 300 Sight Range 24 Robot Scan Range 18 Terrain Scan Range 24 Terrain Scan Density 85 Jamming Range 14 Cloak Strength 3 Power Amplification 30 Additional Mass Support 9 Corruption Block 20 Armor Coverage 375 Resistance: KI 30 Propulsion Shielding 90 Weapon Shielding 66 Point Defense Rating 160 Melee Speed Boost 20 Phase Shifting 10 Evasion (%) 86 Melee Accuracy 10 Core Analysis 6 Armor Integrity Analysis 30 Recoil Reduction 2 Offensive Hacking 26 Defensive Hacking 56 Authchip Count 1 Item Schematics ----------------- Imp. Surge Thruster | -5/Factory | Hacked Biomechanical Wings | -5/Factory | Scanalyzed Com. HERF Cannon | -5/Factory | Hacked Mic. Antimatter Reactor | -5/Factory | Hacked Lgt. Particle Reactor | -5/Factory | Hacked Assault Drone Bay | -5/Zhirov | Free Exp. Heat Sink | -5/Zhirov | Free Exp. Optical Array | -5/Zhirov | Free Imp. Arc Thrower | -5/Zhirov | Free Adv. Power Amplifier | -4/Factory | Scanalyzed Adv. Hacking Suite | -4/Factory | Hacked Robot Schematics ------------------ None Fabricated ------------ Biomechanical Wings | x1 | -4/Factory Alien Tech Used ----------------- Integrated Reactor Transdimensional Reconstructor Achievements -------------- None Challenges ------------ None Game ------ Seed AerolevBehemothCapacitor Manual? 0 Play Time 03:30:18 Cumulative 30.7 hours Start 2023.11.13 @ 22:31:21 End 2023.11.14 @ 03:06:56 Sessions 2 Manual Loads 0 Difficulty Rogue Special Mode None Game No. 13 Rogue 13 Adventurer 0 Explorer 0 Win Type - Total 1 Types 0/0/0/1/0/0/0/0/0 Lore% 30 Gallery% 44 Achievement% 69 Wizard Run 0 Options --------- ASCII 0 Keyboard 0 Movement Mouse Keybinds 0 Fullscreen 2 Font 36/X11 Map View 76x50 Tactical HUD 1 Map Filters NONE Filters NONE Steam 1 RUN: 89bdb747-5adf-4ea3-98f6-a24963836c4c